fUSD/lending_fUSD_20260214
["ID","MTS","AMOUNT","RATE_DAILY","PERIOD"]
[405354684,1771066242338,-151.0,0.00017996,2]
[405354685,1771066242348,-151.0,0.00017996,2]
[405354686,1771066242357,-300.0,0.00017999,2]
[405354687,1771066242367,-500.0,0.00017999,2]
[405354688,1771066242376,-500.0,0.00017999,2]
[405354689,1771066242386,-500.0,0.00017999,2]
[405354690,1771066242395,-500.0,0.00017999,2]
[405354691,1771066242404,-500.0,0.00017999,2]
[405354692,1771066242414,-500.0,0.00017999,2]
[405354693,1771066242423,-244403.57848002,0.00018,2]
[405354695,1771066246418,-417.9533696,0.00015,3]
[405354703,1771066423101,-28427.0,0.000149,2]
[405354704,1771066515857,500.0,8.915e-05,2]
[405354706,1771066528761,504.36395458,8.915e-05,2]
[405354707,1771066530141,500.0,8.915e-05,2]
[405354714,1771067431218,-500.0,0.00014891,2]
[405354715,1771067431228,-200.0,0.00014891,2]
[405354716,1771067431237,-200.0,0.00014891,2]
[405354717,1771067431247,-300.0,0.00014896,2]
[405354718,1771067431256,-300.0,0.00014896,2]
[405354719,1771067431265,-300.0,0.00014896,2]
[405354720,1771067431275,-1200.0,0.00014896,2]
[405354721,1771067431285,-300.0,0.00014896,2]
[405354722,1771067431299,-322.0,0.00014897,2]
[405354723,1771067431308,-150.0,0.00014899,2]
[405354724,1771067431317,-65235.91172747,0.000149,2]
[405354725,1771067431327,-1000.0,0.00014999,2]
[405354726,1771067431338,-128.5786652,0.00015,3]
[405354727,1771067431348,-5000.0,0.00015,2]
[405354728,1771067431358,-9999.99,0.00015097,2]
[405354729,1771067431369,-150.99,0.00015097,2]
[405354730,1771067431379,-999.99,0.00015097,2]
[405354731,1771067431388,-6254.23,0.00015097,2]
[405354732,1771067431398,-1343.33,0.00015097,2]
[405354733,1771067431407,-299.99,0.00015097,2]
[405354734,1771067431417,-515.45,0.00015097,2]
[405354735,1771067431426,-3834.41,0.00015097,2]
[405354736,1771067431435,-9999.99,0.00015097,2]
[405354737,1771067431445,-150.99,0.00015097,2]
[405354738,1771067431455,-3208.15,0.00015097,2]
[405354739,1771067431465,-524.29618187,0.00015198,2]
[405354740,1771067431475,-500.0,0.00015198,2]
[405354741,1771067431484,-500.0,0.00015198,2]
[405354742,1771067431493,-500.0,0.00015198,2]
[405354743,1771067431503,-500.0,0.00015198,2]
[405354744,1771067431512,-500.0,0.00015198,2]
[405354745,1771067431522,-2500.0,0.000155,2]
[405354746,1771067431531,-5000.0,0.00016,2]
[405354747,1771067431540,-255.0,0.00016031,2]
[405354748,1771067431550,-259.99902443,0.00016106,2]
[405354749,1771067431560,-1773.87,0.00016118,2]
[405354750,1771067431570,-150.0,0.00016211,2]
[405354751,1771067431579,-200.0,0.00016211,2]
[405354752,1771067431589,-613.22338336,0.00016278,2]
[405354753,1771067431598,-460.38476074,0.00016278,2]
[405354754,1771067431608,-250.0,0.00016278,2]
[405354755,1771067431618,-420.0,0.00016305,2]
[405354756,1771067431627,-276.0,0.00016305,2]
[405354757,1771067431636,-155.31383889,0.00016306,2]
[405354758,1771067431646,-1680.0,0.00016386,2]
[405354759,1771067431656,-2465.57298242,0.000165,2]
[405354760,1771067431665,-165.06,0.00016665,2]
[405354761,1771067431674,-1000.0,0.00016852,2]
[405354762,1771067431684,-500.0,0.00016854,2]
[405354763,1771067431693,-10000.0,0.00017,2]
[405354764,1771067431704,-4450.00419673,0.00017,2]
[405354765,1771067431714,-5000.0,0.000171,2]
[405354766,1771067431723,-500.0,0.00017128,2]
[405354767,1771067431733,-5000.0,0.000172,2]
[405354768,1771067431743,-395.0,0.00017253,2]
[405354769,1771067431752,-5000.0,0.000173,2]
[405354770,1771067431761,-709.8,0.00017334,2]
[405354771,1771067431770,-5000.0,0.000174,2]
[405354772,1771067431779,-500.0,0.00017402,2]
[405354773,1771067431788,-500.0,0.00017429,2]
[405354774,1771067431798,-500.0,0.00017429,2]
[405354775,1771067431807,-500.0,0.00017429,2]
[405354776,1771067431816,-500.0,0.00017429,2]
[405354777,1771067431826,-500.0,0.00017429,2]
[405354778,1771067431835,-601.70652851,0.00017429,2]
[405354779,1771067431844,-250.0,0.00017429,2]
[405354780,1771067431853,-250.0,0.00017429,2]
[405354781,1771067431863,-254.7033917,0.00017429,2]
[405354782,1771067431872,-250.0,0.00017429,2]
[405354783,1771067431881,-250.0,0.00017429,2]
[405354784,1771067431891,-250.0,0.00017429,2]
[405354785,1771067431900,-250.0,0.00017429,2]
[405354786,1771067431909,-250.0,0.00017429,2]
[405354787,1771067431919,-250.0,0.00017429,2]
[405354788,1771067431928,-202.22637079,0.00017429,2]
[405354789,1771067431937,-250.0,0.00017429,2]
[405354790,1771067431946,-269.20568524,0.00017429,2]
[405354791,1771067431956,-500.0,0.00017429,2]
[405354792,1771067431966,-255.82247405,0.00017429,2]
[405354793,1771067431975,-500.0,0.00017429,2]
[405354794,1771067431986,-527.19404983,0.00017429,2]
[405354795,1771067431995,-210.07340461,0.00017429,2]
[405354796,1771067432004,-267.46074303,0.00017429,2]
[405354797,1771067432014,-5000.0,0.000175,2]
[405354798,1771067432023,-210.0,0.0001752,2]
[405354799,1771067432032,-5000.0,0.000176,2]
[405354800,1771067432042,-644.79274948,0.00017676,2]
[405354801,1771067432051,-5000.0,0.000177,2]
[405354802,1771067432061,-354.0,0.00017799,2]
[405354803,1771067432070,-5000.0,0.000178,2]
[405354804,1771067432079,-5000.0,0.00017808,2]
[405354805,1771067432088,-801.11397406,0.00017808,2]
[405354806,1771067432098,-5000.0,0.00017811,2]
[405354807,1771067432108,-2500.0,0.00017811,2]
[405354808,1771067432117,-441.22095618,0.00017811,2]
[405354809,1771067432127,-289.45306,0.0001782,2]
[405354810,1771067432136,-289.45307,0.0001782,2]
[405354811,1771067432145,-405.0,0.00017846,2]
[405354812,1771067432154,-410.81797377,0.00017898,2]
[405354813,1771067432163,-444.4672625,0.000179,2]
[405354814,1771067432173,-5000.0,0.000179,2]
[405354815,1771067432183,-521.59491122,0.0001791,2]
[405354816,1771067432192,-509.68,0.0001791,2]
[405354817,1771067432201,-155.0,0.0001791,2]
[405354818,1771067432210,-500.0,0.0001791,2]
[405354819,1771067432220,-500.0,0.0001791,2]
[405354820,1771067432229,-500.0,0.0001791,2]
[405354821,1771067432238,-500.0,0.0001791,2]
[405354822,1771067432247,-500.0,0.0001791,2]
[405354823,1771067432258,-500.0,0.0001791,2]
[405354824,1771067432267,-500.0,0.0001791,2]
[405354825,1771067432276,-500.0,0.0001791,2]
[405354826,1771067432286,-500.0,0.0001791,2]
[405354827,1771067432299,-500.0,0.0001791,2]
[405354828,1771067432309,-500.0,0.0001791,2]
[405354829,1771067432319,-500.0,0.0001791,2]
[405354830,1771067432328,-587.59012017,0.0001791,2]
[405354831,1771067432338,-6301.2653877,0.00017911,2]
[405354832,1771067432347,-133031.10445208,0.00017911,2]
[405354833,1771067432360,-135214.93470352,0.00017911,2]
[405354834,1771067432373,-29781.82767813,0.00017911,2]
[405354835,1771067432384,-36991.42853921,0.00017911,2]
[405354836,1771067432396,-1254.41808677,0.00017911,2]
[405354837,1771067432415,-2382.46942602,0.00017911,2]
[405354838,1771067432436,-269.63544121,0.00017911,2]
[405354839,1771067432451,-1597.05436718,0.00017911,2]
[405354840,1771067432463,-312.7,0.00017911,2]
[405354841,1771067432479,-558.27538772,0.00017911,2]
[405354842,1771067437385,-500.0,0.00016852,2]
[405354843,1771067437395,-500.0,0.00017125,2]
[405354844,1771067437404,-151.0,0.00017397,2]
[405354845,1771067437414,-151.0,0.00017908,2]
[405354846,1771067437423,-500.0,0.00017909,2]
[405354847,1771067437433,-5489.5046188,0.00017911,2]
[405354848,1771067437448,-1893.48,0.00017911,2]
[405354849,1771067437459,-889.09882803,0.00017911,2]
[405354850,1771067437495,-24399.95334988,0.00017911,2]
[405354851,1771067437549,-434.15793142,0.00017911,2]
[405354987,1771067439542,-24104.6103854,0.00017911,2]
[405354988,1771067439597,-184969.45116023,0.00017911,2]
[405354989,1771067439607,-103805.8044243,0.00017911,2]
[405354990,1771067439617,-1215.2357009,0.00017911,2]
[405354991,1771067439626,-5054.5430782,0.00017911,2]
[405354992,1771067439636,-154212.8841163,0.00017911,2]
[405354993,1771067439645,-151.0,0.00017911,2]
[405354994,1771067439655,-151.0,0.00017911,2]
[405354995,1771067439664,-151.0,0.00017911,2]
[405354996,1771067439673,-151.0,0.00017911,2]
[405354997,1771067439683,-2143.7204502,0.00017911,2]
[405354998,1771067439693,-151.0,0.00017911,2]
[405354999,1771067439702,-151.0,0.00017911,2]
[405355000,1771067439712,-209.428383,0.00017911,2]
[405355001,1771067439722,-487.0,0.00017911,2]
[405355002,1771067439732,-487.0,0.00017911,2]
[405355003,1771067439741,-487.0,0.00017911,2]
[405355004,1771067439751,-487.0,0.00017911,2]
[405355006,1771067439760,-487.0,0.00017911,2]
[405355007,1771067439770,-487.0,0.00017911,2]
[405355009,1771067439779,-487.0,0.00017911,2]
[405355010,1771067439788,-487.0,0.00017911,2]
[405355011,1771067439798,-487.0,0.00017911,2]
[405355012,1771067439807,-487.0,0.00017911,2]
[405355013,1771067439816,-897.02,0.00017911,2]
[405355014,1771067439825,-709.8,0.00017961,2]
[405355015,1771067439835,-277.35679052,0.00017977,2]
[405355016,1771067439844,-452.22267026,0.0001799,2]
[405355017,1771067439854,-500.0,0.00017999,2]
[405355018,1771067439864,-300.0,0.00017999,2]
[405355019,1771067439873,-666.0,0.00017999,2]
[405355020,1771067439882,-500.0,0.00017999,2]
[405355021,1771067439892,-300.0,0.00017999,2]
[405355022,1771067439902,-500.0,0.00017999,2]
[405355023,1771067439911,-238.64057747,0.00017999,2]
[405355024,1771067439920,-500.0,0.00017999,2]
[405355025,1771067439930,-395.10264688,0.00017999,2]
[405355026,1771067439940,-500.0,0.00017999,2]
[405355027,1771067439949,-500.0,0.00017999,2]
[405355028,1771067439959,-500.0,0.00017999,2]
[405355029,1771067439968,-500.0,0.00017999,2]
[405355030,1771067439977,-500.0,0.00017999,2]
[405355031,1771067439986,-500.0,0.00017999,2]
[405355032,1771067439996,-500.0,0.00017999,2]
[405355033,1771067440005,-500.0,0.00017999,2]
[405355034,1771067440014,-569.23679888,0.00017999,2]
[405355035,1771067440023,-500.0,0.00017999,2]
[405355036,1771067440033,-500.0,0.00017999,2]
[405355037,1771067440042,-500.0,0.00017999,2]
[405355038,1771067440051,-500.0,0.00017999,2]
[405355039,1771067440060,-500.0,0.00017999,2]
[405355040,1771067440069,-500.0,0.00017999,2]
[405355041,1771067440078,-500.0,0.00017999,2]
[405355042,1771067440087,-500.0,0.00017999,2]
[405355043,1771067440096,-167.04840422,0.00017999,2]
[405355044,1771067440106,-500.0,0.00017999,2]
[405355045,1771067440115,-159.36028195,0.00017999,2]
[405355046,1771067440125,-500.0,0.00017999,2]
[405355047,1771067440134,-500.0,0.00017999,2]
[405355048,1771067440144,-500.0,0.00017999,2]
[405355049,1771067440153,-500.0,0.00017999,2]
[405355050,1771067440163,-158442.24689166,0.00018,2]
[405355051,1771067440173,-232.84393384,0.00018,2]
[405355052,1771067440183,-165.88048044,0.00018,2]
[405355053,1771067440192,-151.0,0.00018,2]
[405355054,1771067440201,-151.0,0.00018,2]
[405355055,1771067440211,-151.0,0.00018,2]
[405355056,1771067440220,-2000.0,0.00018,2]
[405355057,1771067440229,-200.0,0.00018,2]
[405355058,1771067440239,-151.0,0.00018,2]
[405355059,1771067440248,-215.973522,0.00018,2]
[405355060,1771067440257,-228.368915,0.00018,2]
[405355061,1771067440266,-228.368915,0.00018,2]
[405355062,1771067440276,-228.368915,0.00018,2]
[405355063,1771067440285,-228.368915,0.00018,2]
[405355064,1771067440296,-151.0,0.00018,2]
[405355065,1771067440306,-151.0,0.00018,2]
[405355066,1771067440316,-10000.0,0.00018,2]
[405355067,1771067440325,-151.0,0.00018,2]
[405355068,1771067440335,-151.0,0.00018,2]
[405355069,1771067440344,-151.0,0.00018,2]
[405355070,1771067440353,-151.0,0.00018,2]
[405355071,1771067440364,-292.946264,0.00018,2]
[405355072,1771067440375,-151.0,0.00018,2]
[405355073,1771067440384,-1299.0,0.00018024,2]
[405355074,1771067440393,-162.39873872,0.00018157,2]
[405355075,1771067440403,-173.43456991,0.00018174,2]
[405355076,1771067440412,-160.0,0.00018174,2]
[405355077,1771067440422,-200.0,0.0001818,2]
[405355078,1771067440432,-164.29,0.00018223,2]
[405355079,1771067440441,-447.0,0.00018301,2]
[405355080,1771067440451,-2148.39931184,0.00018321,2]
[405355081,1771067440460,-700.0,0.00018336,2]
[405355082,1771067440470,-817.0,0.00018417,2]
[405355083,1771067440479,-310.94232541,0.00018525,2]
[405355084,1771067440488,-300.0,0.00018532,2]
[405355085,1771067440497,-316.65250639,0.00018532,2]
[405355086,1771067440507,-8677.14,0.00018533,2]
[405355087,1771067440517,-23720.35,0.00018533,2]
[405355088,1771067440526,-447.0,0.00018545,2]
[405355089,1771067440536,-500.0,0.00018545,2]
[405355090,1771067440545,-200.0,0.00018545,2]
[405355091,1771067440555,-709.8,0.00018588,2]
[405355092,1771067440564,-350.0,0.00018635,2]
[405355093,1771067440574,-405.0,0.00018695,2]
[405355094,1771067440583,-405.0,0.00018695,2]
[405355095,1771067440592,-393.0,0.00018695,2]
[405355096,1771067440601,-300.0,0.00018714,2]
[405355097,1771067440611,-1288.0,0.00018715,2]
[405355098,1771067440621,-1208.0,0.00018715,2]
[405355099,1771067440630,-918.0,0.00018715,2]
[405355100,1771067440640,-5969.0,0.00018715,2]
[405355101,1771067440650,-2450.0,0.00018715,2]
[405355102,1771067440659,-412.0,0.00018715,2]
[405355103,1771067440669,-365.0,0.00018753,2]
[405355104,1771067440679,-3297.91,0.00018754,2]
[405355105,1771067440688,-450.0,0.00018798,14]
[405355106,1771067440698,-1000.0,0.00018958,2]
[405355107,1771067440708,-312.34,0.00018972,2]
[405355108,1771067440718,-10000.0,0.00019,2]
[405355109,1771067440727,-519.0,0.00019,2]
[405355110,1771067440737,-200.20598465,0.00019082,2]
[405355111,1771067440746,-709.8,0.00019215,2]
[405355112,1771067440755,-4450.00419666,0.00019362,2]
[405355113,1771067440765,-164.0,0.00019377,2]
[405355114,1771067440774,-350.0,0.00019528,2]
[405355115,1771067440784,-3297.91,0.00019569,2]
[405355116,1771067440793,-250.0,0.00019781,2]
[405355117,1771067440803,-709.8,0.00019842,2]
[405355118,1771067440812,-151.11494194,0.0002,2]
[405355119,1771067440822,-157.89141156,0.0002,2]
[405355120,1771067440831,-504.47017576,0.0002,2]
[405355121,1771067440841,-502.06344628,0.0002,2]
[405355122,1771067440851,-500.0,0.0002,2]
[405355123,1771067440862,-500.0,0.0002,2]
[405355124,1771067440872,-504.11574809,0.0002,2]
[405355125,1771067440882,-168.36494042,0.0002,2]
[405355126,1771067440891,-154.53696913,0.0002,2]
[405355127,1771067440901,-10000.0,0.0002,2]
[405355128,1771067440910,-1022.356897,0.00020087,2]
[405355129,1771067440920,-1406.0023551,0.00020187,2]
[405355130,1771067440930,-859.096,0.00020248,2]
[405355131,1771067440940,-300.0,0.00020259,2]
[405355132,1771067440949,-283.65,0.00020259,2]
[405355133,1771067440959,-500.0,0.00020259,2]
[405355134,1771067440969,-500.0,0.00020259,2]
[405355135,1771067440978,-130212.9833633,0.0002026,2]
[405355136,1771067440987,-23162.2057655,0.0002026,2]
[405355137,1771067440999,-1127.8210065,0.0002026,2]
[405355138,1771067441008,-34409.5455298,0.0002026,2]
[405355139,1771067441018,-151.0,0.0002026,2]
[405355140,1771067441027,-214.285831,0.0002026,2]
[405355141,1771067441036,-151.0,0.0002026,2]
[405355142,1771067441046,-151.0,0.0002026,2]
[405355143,1771067441055,-228.368915,0.0002026,2]
[405355144,1771067441065,-228.368915,0.0002026,2]
[405355145,1771067441075,-228.368915,0.0002026,2]
[405355146,1771067441084,-228.368915,0.0002026,2]
[405355147,1771067441093,-151.0,0.0002026,2]
[405355148,1771067441102,-151.0,0.0002026,2]
[405355149,1771067441111,-205.161971,0.0002026,2]
[405355150,1771067441120,-151.0,0.0002026,2]
[405355151,1771067441130,-151.0,0.0002026,2]
[405355152,1771067441139,-500.0,0.00020283,2]
[405355153,1771067441149,-500.0,0.00020283,2]
[405355154,1771067441158,-151.0,0.00020284,2]
[405355155,1771067441167,-709.8,0.00020469,2]
[405355156,1771067441177,-1000.0,0.00020548,2]
[405355157,1771067441186,-503.6621312,0.00020548,2]
[405355158,1771067441195,-165.06,0.00020574,2]
[405355159,1771067441204,-1000.0,0.00020627,2]
[405355160,1771067441214,-1000.0,0.00020627,2]
[405355161,1771067441223,-1000.0,0.00020627,2]
[405355162,1771067441232,-1000.0,0.00020627,2]
[405355163,1771067441242,-166.66,0.00020682,2]
[405355164,1771067441251,-313.7215306,0.00020694,2]
[405355165,1771067441260,-300.0,0.00020783,2]
[405355166,1771067441270,-29054.4438312,0.00020784,2]
[405355167,1771067441279,-5168.1866818,0.00020784,2]
[405355168,1771067441289,-251.6508818,0.00020784,2]
[405355169,1771067441302,-7677.8074047,0.00020784,2]
[405355170,1771067441312,-498.3169662,0.0002098,2]
[405355171,1771067441322,-10000.0,0.00021,2]
[405355172,1771067441331,-1000.0,0.00021064,2]
[405355173,1771067441341,-312.34,0.0002108,2]
[405355174,1771067441351,-1498.87033063,0.00021096,2]
[405355175,1771067441360,-709.8,0.00021096,2]
[405355176,1771067441371,-166.66,0.00021365,2]
[405355177,1771067441381,-841.0,0.0002152,2]
[405355178,1771067441391,-2983.513721,0.00021657,7]
[405355179,1771067441400,-626.596928,0.00021657,7]
[405355180,1771067441410,-1288.0,0.00021715,2]
[405355181,1771067441419,-1204.0,0.00021715,2]
[405355182,1771067441428,-918.0,0.00021715,2]
[405355183,1771067441438,-5619.677,0.00021715,2]
[405355184,1771067441447,-2450.0,0.00021715,2]
[405355185,1771067441457,-709.8,0.00021723,2]
[405355186,1771067441467,-4450.00419666,0.00021724,2]
[405355187,1771067441476,-444.46726248,0.00021795,2]
[405355188,1771067441486,-5000.0,0.00021918,2]
[405355189,1771067441495,-800.0,0.00021918,2]
[405355190,1771067441505,-800.0,0.00021918,2]
[405355191,1771067441515,-800.0,0.00021918,2]
[405355192,1771067441524,-800.0,0.00021918,2]
[405355193,1771067441534,-800.0,0.00021918,2]
[405355194,1771067441543,-800.0,0.00021918,2]
[405355195,1771067441553,-800.0,0.00021918,2]
[405355196,1771067441562,-800.0,0.00021918,2]
[405355197,1771067441572,-1779.47,0.00022,7]
[405355198,1771067441581,-177.0,0.00022,2]
[405355199,1771067441591,-10000.0,0.00022,2]
[405355200,1771067441601,-151.0,0.00022,2]
[405355201,1771067441610,-298.25,0.00022041,2]
[405355202,1771067441619,-166.66,0.00022047,2]
[405355203,1771067441629,-709.8,0.0002235,2]
[405355204,1771067441638,-151.0,0.00022415,2]
[405355205,1771067441647,-151.0,0.00022415,2]
[405355206,1771067441658,-394.40161693,0.00022565,2]
[405355207,1771067441667,-1773.87,0.00022565,2]
[405355208,1771067441676,-477.07852031,0.00022575,2]
[405355209,1771067441686,-165.06,0.00022616,2]
[405355210,1771067441695,-511.0,0.00022705,10]
[405355211,1771067441705,-166.66,0.0002273,2]
[405355212,1771067441714,-500.0,0.00022819,7]
[405355213,1771067441724,-500.0,0.00022819,7]
[405355214,1771067441733,-800.0,0.00022819,7]
[405355215,1771067441743,-709.8,0.00022977,2]
[405355216,1771067441752,-160.0,0.00023,2]
[405355217,1771067441762,-10000.0,0.00023,2]
[405355218,1771067441771,-1000.0,0.00023171,2]
[405355219,1771067441780,-2962.0,0.00023183,3]
[405355220,1771067441790,-312.34,0.00023188,2]
[405355221,1771067441799,-441.22095614,0.00023265,2]
[405355222,1771067441809,-166.66,0.00023413,2]
[405355223,1771067441818,-709.8,0.00023604,2]
[405355224,1771067441828,-800.0,0.00023915,7]
[405355225,1771067441837,-1000.0,0.00024065,2]
[405355226,1771067441847,-150.0,0.00024079,2]
[405355227,1771067441856,-1000.0,0.00024083,2]
[405355228,1771067441866,-519.0,0.00024083,6]
[405355229,1771067441875,-1000.0,0.00024084,2]
[405355230,1771067442024,-4450.00419666,0.00024085,2]
[405355231,1771067442034,-1000.0,0.00024088,2]
[405355232,1771067442044,-1000.0,0.0002409,2]
[405355233,1771067442053,-1000.0,0.00024091,2]
[405355234,1771067442063,-1000.0,0.00024092,2]
[405355235,1771067442072,-1000.0,0.00024095,2]
[405355236,1771067442082,-166.66,0.00024095,2]
[405355237,1771067442091,-1000.0,0.00024101,2]
[405355238,1771067442100,-1000.0,0.00024103,2]
[405355239,1771067442110,-150.0,0.00024105,2]
[405355240,1771067442119,-1000.0,0.00024107,2]
[405355241,1771067442128,-1000.0,0.00024108,2]
[405355242,1771067442138,-150.0,0.00024111,2]
[405355243,1771067442147,-1000.0,0.00024111,2]
[405355244,1771067442156,-1000.0,0.00024118,2]
[405355245,1771067442166,-169.67564379,0.00024128,2]
[405355246,1771067442175,-1000.0,0.00024131,2]
[405355247,1771067442184,-1000.0,0.00024144,2]
[405355248,1771067442194,-1000.0,0.00024149,2]
[405355249,1771067442203,-1000.0,0.00024149,2]
[405355250,1771067442213,-150.0,0.00024157,2]
[405355251,1771067442222,-1000.0,0.00024187,2]
[405355252,1771067442231,-150.0,0.00024188,2]
[405355253,1771067442241,-150.0,0.00024193,2]
[405355254,1771067442250,-1000.0,0.00024194,2]
[405355255,1771067442259,-151.0,0.00024196,2]
[405355256,1771067442269,-167.75905219,0.00024197,2]
[405355257,1771067442278,-150.0,0.000242,2]
[405355258,1771067442287,-1000.0,0.00024202,2]
[405355259,1771067442300,-1000.0,0.00024216,2]
[405355260,1771067442310,-150.0,0.00024218,2]
[405355261,1771067442319,-150.0,0.00024222,2]
[405355262,1771067442329,-709.8,0.00024231,2]
[405355263,1771067442341,-150.0,0.00024231,2]
[405355264,1771067442350,-1000.0,0.00024231,2]
[405355265,1771067442359,-150.0,0.00024231,2]
[405355266,1771067442370,-1000.0,0.00024236,2]
[405355267,1771067442379,-1000.0,0.00024237,2]
[405355268,1771067442388,-1000.0,0.00024239,2]
[405355269,1771067442398,-1000.0,0.00024246,2]
[405355270,1771067442407,-1000.0,0.00024246,2]
[405355271,1771067442417,-1000.0,0.00024247,2]
[405355272,1771067442427,-1000.0,0.00024247,2]
[405355273,1771067442436,-150.0,0.00024252,2]
[405355274,1771067442445,-150.0,0.00024256,2]
[405355275,1771067442454,-1000.0,0.00024264,2]
[405355276,1771067442464,-1000.0,0.00024266,2]
[405355277,1771067442474,-150.0,0.00024267,2]
[405355278,1771067442484,-1000.0,0.00024268,2]
[405355279,1771067442493,-151.0,0.00024269,2]
[405355280,1771067442503,-228.368915,0.00024269,2]
[405355281,1771067442511,-228.368915,0.00024269,2]
[405355282,1771067442520,-228.368915,0.00024269,2]
[405355283,1771067442530,-228.368915,0.00024269,2]
[405355284,1771067442539,-150.0,0.00024273,2]
[405355285,1771067442548,-151.0,0.00024284,2]
[405355286,1771067442557,-150.0,0.00024289,2]
[405355287,1771067442566,-1000.0,0.00024291,2]
[405355288,1771067442575,-1000.0,0.00024291,2]
[405355289,1771067442585,-1000.0,0.00024295,2]
[405355290,1771067442594,-150.0,0.00024295,2]
[405355291,1771067442603,-1045.36603409,0.000243,2]
[405355292,1771067442612,-500.0,0.000243,2]
[405355293,1771067442622,-500.0,0.000243,2]
[405355294,1771067442631,-1000.0,0.00024303,2]
[405355295,1771067442640,-150.0,0.00024305,2]
[405355296,1771067442649,-150.0,0.00024313,2]
[405355297,1771067442659,-150.0,0.00024318,2]
[405355298,1771067442668,-1000.0,0.00024324,2]
[405355299,1771067442679,-1000.0,0.00024325,2]
[405355300,1771067442688,-1000.0,0.00024331,2]
[405355301,1771067442698,-1000.0,0.00024331,2]
[405355302,1771067442708,-1000.0,0.00024331,2]
[405355303,1771067442718,-1000.0,0.00024332,2]
[405355304,1771067442728,-1000.0,0.00024333,2]
[405355305,1771067442738,-1000.0,0.00024334,2]
[405355306,1771067442747,-2000.0,0.00024341,2]
[405355307,1771067442757,-220.12180494,0.00024368,2]
[405355308,1771067442767,-1307.21589687,0.00024463,7]
[405355309,1771067442776,-150.0,0.00024463,2]
[405355310,1771067442785,-150.0,0.00024463,2]
[405355311,1771067442795,-150.0,0.00024463,2]
[405355312,1771067442804,-155.2415479,0.00024463,2]
[405355313,1771067442813,-150.0,0.00024463,2]
[405355314,1771067442823,-150.0,0.00024463,2]
[405355315,1771067442832,-226.40277097,0.00024463,2]
[405355316,1771067442841,-150.0,0.00024463,2]
[405355317,1771067442850,-228.61849715,0.00024463,2]
[405355318,1771067442859,-150.0,0.00024463,2]
[405355319,1771067442869,-150.0,0.00024463,2]
[405355320,1771067442878,-150.0,0.00024463,2]
[405355321,1771067442887,-150.0,0.00024463,2]
[405355322,1771067442896,-150.0,0.00024463,2]
[405355323,1771067442905,-150.0,0.00024463,2]
[405355324,1771067442914,-498.3169662,0.0002449,2]
[405355325,1771067442923,-10000.0,0.00024615,2]
[405355326,1771067442932,-1000.0,0.00024658,2]
[405355327,1771067442942,-151.0,0.00024658,2]
[405355329,1771067442951,-150.0,0.00024658,2]
[405355330,1771067442962,-2460.53805941,0.0002469,2]
[405355332,1771067442973,-152.0,0.00024707,3]
[405355334,1771067442982,-1288.0,0.00024715,2]
[405355335,1771067442991,-2450.0,0.00024715,2]
[405355336,1771067443000,-415.94457588,0.00024851,2]
[405355337,1771067443009,-176.7327853,0.00024875,12]
[405355339,1771067443018,-76464.89788277,0.00025,60]